[Event "*** Titled Tuesday Blitz"]
[Site "Chess.com"]
[Date "2019.02.05"]
[Round "6"]
[White "Abund"]
[Black "MITerryble"]
[Result "0-1"]
[WhiteElo "2546"]
[BlackElo "2795"]
[TimeControl "180+2"]
[EndTime "14:24:33 PST"]
[Termination "MITerryble won by resignation"]

1. Nf3 {[%clk 0:03:01.9]} 1... Nf6 {[%clk 0:03:00.7]} 2. c4 {[%clk 0:03:01.4]}
2... b6 {[%clk 0:03:00.3]} 3. Nc3 {[%clk 0:02:55.3]} 3... Bb7 {[%clk 0:03:01.5]}
4. g3 {[%clk 0:02:43.2]} 4... g6 {[%clk 0:03:02.4]} 5. Bg2 {[%clk 0:02:43.9]}
5... Bg7 {[%clk 0:03:03.4]} 6. d4 {[%clk 0:02:45]} 6... O-O {[%clk 0:03:04.3]}
7. O-O {[%clk 0:02:44.7]} 7... e6 {[%clk 0:03:05.5]} 8. Qc2 {[%clk 0:02:39.2]}
8... d5 {[%clk 0:03:05.1]} 9. Ne5 {[%clk 0:02:39]} 9... h6 {[%clk 0:02:51.8]}
10. Rd1 {[%clk 0:02:28.3]} 10... Nbd7 {[%clk 0:02:52]} 11. Qa4 {[%clk
0:02:24.9]} 11... c6 {[%clk 0:02:29.1]} 12. Nxc6 {[%clk 0:02:14]} 12... Bxc6
{[%clk 0:02:31]} 13. Qxc6 {[%clk 0:02:15.3]} 13... Rc8 {[%clk 0:02:32.2]} 14.
Qa4 {[%clk 0:02:10.8]} 14... Rxc4 {[%clk 0:02:33.1]} 15. Qxa7 {[%clk 0:02:11.7]}
15... Nb8 {[%clk 0:02:20.8]} 16. Bf4 {[%clk 0:02:01]} 16... Nc6 {[%clk
0:02:20.9]} 17. Qa6 {[%clk 0:00:59]} 17... Nh5 {[%clk 0:02:07]} 18. Be3 {[%clk
0:00:54.6]} 18... Nxd4 {[%clk 0:02:03.8]} 19. Bxd4 {[%clk 0:00:33.8]} 19... Rxd4
{[%clk 0:02:04.4]} 20. e3 {[%clk 0:00:30.4]} 20... Rb4 {[%clk 0:02:03.2]} 21.
Qa3 {[%clk 0:00:26.7]} 21... Rc4 {[%clk 0:02:02.3]} 22. Qb3 {[%clk 0:00:25.3]}
22... Qc7 {[%clk 0:01:54.9]} 23. Nb5 {[%clk 0:00:19.8]} 23... Qc5 {[%clk
0:01:55.3]} 24. a4 {[%clk 0:00:16]} 24... Rb4 {[%clk 0:01:52.2]} 25. Qd3 {[%clk
0:00:16.3]} 25... Rxb2 {[%clk 0:01:53]} 26. Rac1 {[%clk 0:00:15.8]} 26... Qb4
{[%clk 0:01:54]} 27. Nc3 {[%clk 0:00:10.2]} 27... Nf6 {[%clk 0:01:51.9]} 28. Qd4
{[%clk 0:00:09.8]} 28... Qxd4 {[%clk 0:01:48.1]} 29. exd4 {[%clk 0:00:09.7]}
29... Rb4 {[%clk 0:01:38.4]} 30. Rb1 {[%clk 0:00:09.8]} 30... Rc4 {[%clk
0:01:39.7]} 31. Ne2 {[%clk 0:00:10.1]} 31... Rxa4 {[%clk 0:01:40.5]} 32. Rxb6
{[%clk 0:00:10.8]} 32... Rc8 {[%clk 0:01:41.6]} 33. h3 {[%clk 0:00:11.3]} 33...
Ra2 {[%clk 0:01:41.9]} 34. Bf3 {[%clk 0:00:09.9]} 34... Nd7 {[%clk 0:01:39.8]}
35. Rb7 {[%clk 0:00:10.5]} 35... Nf6 {[%clk 0:01:39]} 36. Kf1 {[%clk 0:00:10.5]}
36... Ne8 {[%clk 0:01:39.4]} 37. Rd3 {[%clk 0:00:10.8]} 37... Nd6 {[%clk
0:01:39.1]} 38. Rd7 {[%clk 0:00:11.2]} 38... Nb5 {[%clk 0:01:38.5]} 39. Rb7
{[%clk 0:00:10.3]} 39... Nd6 {[%clk 0:01:39.5]} 40. Rd7 {[%clk 0:00:10.7]} 40...
Nc4 {[%clk 0:01:39.7]} 41. Nf4 {[%clk 0:00:09]} 41... Nd2+ {[%clk 0:01:35.4]}
42. Kg2 {[%clk 0:00:10.1]} 42... Rcc2 {[%clk 0:01:37.2]} 43. Bd1 {[%clk
0:00:07.7]} 43... Rcb2 {[%clk 0:01:37.9]} 44. Rd8+ {[%clk 0:00:07.7]} 44... Kh7
{[%clk 0:01:38.5]} 45. Rd7 {[%clk 0:00:08.4]} 45... Ne4 {[%clk 0:01:31.2]} 46.
Ne2 {[%clk 0:00:08.3]} 46... Rxe2 {[%clk 0:01:25.6]} 47. Bxe2 {[%clk 0:00:08.9]}
47... Rxe2 {[%clk 0:01:27.5]} 48. Rxf7 {[%clk 0:00:09.9]} 48... Kg8 {[%clk
0:01:28.7]} 49. Rff3 {[%clk 0:00:10]} 49... g5 {[%clk 0:01:20.5]} 50. Kf1 {[%clk
0:00:10.5]} 50... Rb2 {[%clk 0:01:19.4]} 51. Kg2 {[%clk 0:00:11.2]} 51... Kh7
{[%clk 0:01:17.8]} 52. h4 {[%clk 0:00:10.4]} 52... g4 {[%clk 0:01:15.6]} 53. Rf4
{[%clk 0:00:11.7]} 53... h5 {[%clk 0:01:17.2]} 54. Kg1 {[%clk 0:00:09.8]} 54...
Kg6 {[%clk 0:01:18]} 55. f3 {[%clk 0:00:10.1]} 55... Nxg3 {[%clk 0:01:16.3]} 56.
Rxg4+ {[%clk 0:00:06.9]} 56... hxg4 {[%clk 0:01:16.8]} 57. fxg4 {[%clk
0:00:08.8]} 57... Bxd4+ {[%clk 0:01:15.7]} 0-1

[Event "*** Titled Tuesday Blitz"]
[Site "Chess.com"]
[Date "2019.02.05"]
[Round "6"]
[White "wadsy27"]
[Black "PotapovaM"]
[Result "1-0"]
[WhiteElo "2324"]
[BlackElo "2416"]
[TimeControl "180+2"]
[EndTime "14:24:35 PST"]
[Termination "wadsy27 won by resignation"]

1. c4 {[%clk 0:03:01.9]} 1... Nf6 {[%clk 0:03:00.2]} 2. g3 {[%clk 0:03:01]} 2...
e5 {[%clk 0:02:56.2]} 3. Bg2 {[%clk 0:03:01.7]} 3... d6 {[%clk 0:02:53.7]} 4.
Nc3 {[%clk 0:03:00.9]} 4... Nbd7 {[%clk 0:02:51.9]} 5. Nf3 {[%clk 0:02:57.8]}
5... g6 {[%clk 0:02:52.9]} 6. O-O {[%clk 0:02:53.7]} 6... Bg7 {[%clk 0:02:53.9]}
7. Rb1 {[%clk 0:02:53]} 7... O-O {[%clk 0:02:54.9]} 8. b4 {[%clk 0:02:39.6]}
8... a5 {[%clk 0:02:54.4]} 9. b5 {[%clk 0:02:35.7]} 9... Nc5 {[%clk 0:02:53.6]}
10. Ba3 {[%clk 0:02:31.9]} 10... Ne6 {[%clk 0:02:51.3]} 11. d3 {[%clk 0:02:28]}
11... Nd7 {[%clk 0:02:49.5]} 12. Nd2 {[%clk 0:02:26.7]} 12... h6 {[%clk
0:02:45.3]} 13. Nd5 {[%clk 0:02:15.8]} 13... Nf6 {[%clk 0:02:30.5]} 14. b6
{[%clk 0:02:08.2]} 14... c6 {[%clk 0:02:28.3]} 15. Nxf6+ {[%clk 0:02:05.3]}
15... Bxf6 {[%clk 0:02:28.6]} 16. c5 {[%clk 0:01:50.4]} 16... d5 {[%clk
0:02:25.6]} 17. e4 {[%clk 0:01:45.8]} 17... Bg7 {[%clk 0:02:20.3]} 18. exd5
{[%clk 0:01:38.6]} 18... cxd5 {[%clk 0:02:16.8]} 19. Qb3 {[%clk 0:01:37]} 19...
e4 {[%clk 0:01:35.3]} 20. dxe4 {[%clk 0:01:29.6]} 20... dxe4 {[%clk 0:01:37.2]}
21. Nxe4 {[%clk 0:01:29.3]} 21... Nd4 {[%clk 0:01:36.4]} 22. Qd1 {[%clk
0:01:19.6]} 22... Bf5 {[%clk 0:01:29.1]} 23. Bb2 {[%clk 0:01:13]} 23... Re8
{[%clk 0:01:25.8]} 24. Re1 {[%clk 0:01:09.7]} 24... Rb8 {[%clk 0:01:23.1]} 25.
Rc1 {[%clk 0:01:07.3]} 25... Qd7 {[%clk 0:01:01.4]} 26. Nd6 {[%clk 0:00:52.8]}
26... Rxe1+ {[%clk 0:01:01.9]} 27. Qxe1 {[%clk 0:00:53.4]} 27... Bg4 {[%clk
0:01:03.1]} 28. Bxd4 {[%clk 0:00:48.1]} 28... Bxd4 {[%clk 0:01:05]} 29. Qxa5
{[%clk 0:00:40.3]} 29... Kh7 {[%clk 0:00:44.7]} 30. Qa7 {[%clk 0:00:40]} 30...
Rf8 {[%clk 0:00:33.9]} 31. Qxb7 {[%clk 0:00:38.5]} 31... Qe6 {[%clk 0:00:34.1]}
32. Qe4 {[%clk 0:00:33]} 32... Qf6 {[%clk 0:00:13.4]} 33. Qxg4 {[%clk
0:00:32.4]} 33... Qxf2+ {[%clk 0:00:14.2]} 34. Kh1 {[%clk 0:00:32.4]} 34... Bxc5
{[%clk 0:00:15.3]} 35. Ne4 {[%clk 0:00:28.4]} 35... Qe3 {[%clk 0:00:14.3]} 36.
Qd1 {[%clk 0:00:17.3]} 36... Bxb6 {[%clk 0:00:13.2]} 37. Qd2 {[%clk 0:00:15]}
37... Qxd2 {[%clk 0:00:11.3]} 38. Nxd2 {[%clk 0:00:15.8]} 38... Be3 {[%clk
0:00:12.3]} 39. Rc2 {[%clk 0:00:16.3]} 39... Rd8 {[%clk 0:00:11.9]} 40. Nf1
{[%clk 0:00:17]} 40... Rd1 {[%clk 0:00:12.3]} 41. a4 {[%clk 0:00:14.5]} 41...
Bd4 {[%clk 0:00:11.9]} 42. Ra2 {[%clk 0:00:13]} 42... Ba7 {[%clk 0:00:11.7]} 43.
a5 {[%clk 0:00:13.9]} 43... f5 {[%clk 0:00:13]} 44. h4 {[%clk 0:00:14.2]} 44...
g5 {[%clk 0:00:13.9]} 45. Kh2 {[%clk 0:00:15]} 45... Kg6 {[%clk 0:00:14.4]} 46.
a6 {[%clk 0:00:15.1]} 46... Kh5 {[%clk 0:00:14.9]} 47. Bf3+ {[%clk 0:00:14.3]}
47... g4 {[%clk 0:00:14.5]} 48. Bxd1 {[%clk 0:00:15.3]} 1-0

[Event "*** Titled Tuesday Blitz"]
[Site "Chess.com"]
[Date "2019.02.05"]
[Round "6"]
[White "ElGasanov"]
[Black "FelixBlohberger"]
[Result "0-1"]
[WhiteElo "2713"]
[BlackElo "2671"]
[TimeControl "180+2"]
[EndTime "14:24:37 PST"]
[Termination "FelixBlohberger won by resignation"]

1. d4 {[%clk 0:03:01.9]} 1... Nf6 {[%clk 0:02:56.4]} 2. c4 {[%clk 0:03:02.9]}
2... e6 {[%clk 0:02:57.6]} 3. Bg5 {[%clk 0:03:03.4]} 3... Bb4+ {[%clk
0:02:53.7]} 4. Nd2 {[%clk 0:03:04]} 4... h6 {[%clk 0:02:54]} 5. Bh4 {[%clk
0:03:05.3]} 5... g5 {[%clk 0:02:35.2]} 6. Bg3 {[%clk 0:03:05.2]} 6... Ne4 {[%clk
0:02:34.2]} 7. Nf3 {[%clk 0:03:06.7]} 7... Nc6 {[%clk 0:02:31.3]} 8. a3 {[%clk
0:02:55]} 8... Bxd2+ {[%clk 0:02:22.6]} 9. Nxd2 {[%clk 0:02:55.5]} 9... Nxg3
{[%clk 0:02:23.8]} 10. hxg3 {[%clk 0:02:56.8]} 10... Nxd4 {[%clk 0:02:25.2]} 11.
e3 {[%clk 0:02:56.1]} 11... Nc6 {[%clk 0:02:24.5]} 12. Ne4 {[%clk 0:02:55.7]}
12... f5 {[%clk 0:02:21.7]} 13. Qh5+ {[%clk 0:02:55.7]} 13... Ke7 {[%clk
0:01:34]} 14. Nxg5 {[%clk 0:02:56.5]} 14... Qf8 {[%clk 0:01:29.5]} 15. O-O-O
{[%clk 0:02:50.7]} 15... Qf6 {[%clk 0:01:27.9]} 16. f4 {[%clk 0:02:39.8]} 16...
d6 {[%clk 0:01:22.1]} 17. e4 {[%clk 0:02:38.5]} 17... Bd7 {[%clk 0:01:19.1]} 18.
e5 {[%clk 0:02:13.7]} 18... dxe5 {[%clk 0:01:02.2]} 19. Nf3 {[%clk 0:02:09.8]}
19... e4 {[%clk 0:01:00.3]} 20. Nh4 {[%clk 0:02:05.4]} 20... Rhg8 {[%clk
0:00:53.3]} 21. Qe2 {[%clk 0:01:45.3]} 21... Rxg3 {[%clk 0:00:44.5]} 22. Qf2
{[%clk 0:01:46.5]} 22... Rag8 {[%clk 0:00:44.6]} 23. Qc5+ {[%clk 0:01:39.3]}
23... Kd8 {[%clk 0:00:36.4]} 24. Be2 {[%clk 0:01:34.3]} 24... Kc8 {[%clk
0:00:34.7]} 25. Rd2 {[%clk 0:01:29]} 25... Qe7 {[%clk 0:00:28.1]} 26. Qg1 {[%clk
0:01:18.1]} 26... Kb8 {[%clk 0:00:16.2]} 27. Rh2 {[%clk 0:01:11.7]} 27... Na5
{[%clk 0:00:17]} 28. Kc2 {[%clk 0:01:09.9]} 28... Ba4+ {[%clk 0:00:17.5]} 29.
Kb1 {[%clk 0:01:10.5]} 29... Nb3 {[%clk 0:00:17.2]} 30. Rd1 {[%clk 0:01:09.9]}
30... c5 {[%clk 0:00:16.5]} 31. Qe1 {[%clk 0:01:04.1]} 31... Nd4 {[%clk
0:00:16.3]} 32. Rd2 {[%clk 0:01:04.8]} 32... e3 {[%clk 0:00:13.8]} 33. Rxd4
{[%clk 0:00:56.2]} 33... cxd4 {[%clk 0:00:15.7]} 34. Qf1 {[%clk 0:00:55]} 34...
Bc6 {[%clk 0:00:14.1]} 35. Nf3 {[%clk 0:00:54.5]} 35... Be4+ {[%clk 0:00:14.9]}
36. Ka2 {[%clk 0:00:54.3]} 36... Qc5 {[%clk 0:00:10.6]} 37. Ne5 {[%clk
0:00:51.3]} 37... Ka8 {[%clk 0:00:08.3]} 38. Rxh6 {[%clk 0:00:50.7]} 38... Rxg2
{[%clk 0:00:07.7]} 39. Rxe6 {[%clk 0:00:51]} 39... a6 {[%clk 0:00:07.4]} 40. Qd1
{[%clk 0:00:50.2]} 40... Rg1 {[%clk 0:00:05.8]} 41. Re8+ {[%clk 0:00:46.2]}
41... Rxe8 {[%clk 0:00:06.1]} 42. Qxg1 {[%clk 0:00:46.9]} 42... d3 {[%clk
0:00:05.6]} 43. Qg6 {[%clk 0:00:43]} 43... Rd8 {[%clk 0:00:04.5]} 44. Qg5 {[%clk
0:00:30]} 44... Qc7 {[%clk 0:00:05.6]} 45. Bh5 {[%clk 0:00:26.8]} 45... d2
{[%clk 0:00:05.5]} 46. Qg1 {[%clk 0:00:22.4]} 46... Bc2 {[%clk 0:00:05.8]} 47.
Bd1 {[%clk 0:00:20.7]} 47... Bxd1 {[%clk 0:00:06.2]} 48. Qxd1 {[%clk 0:00:22]}
48... e2 {[%clk 0:00:07.7]} 0-1

[Event "*** Titled Tuesday Blitz"]
[Site "Chess.com"]
[Date "2019.02.05"]
[Round "6"]
[White "Agent-JL"]
[Black "AndrewMcStone"]
[Result "1-0"]
[WhiteElo "2254"]
[BlackElo "2106"]
[TimeControl "180+2"]
[EndTime "14:24:39 PST"]
[Termination "Agent-JL won by resignation"]

1. e4 {[%clk 0:03:01.2]} 1... e6 {[%clk 0:02:58.1]} 2. Nf3 {[%clk 0:03:02.7]}
2... d5 {[%clk 0:02:59.1]} 3. Nc3 {[%clk 0:03:04.4]} 3... Nf6 {[%clk 0:02:59.6]}
4. Bd3 {[%clk 0:03:05.8]} 4... c5 {[%clk 0:02:50.6]} 5. e5 {[%clk 0:02:54.2]}
5... Nfd7 {[%clk 0:02:48.4]} 6. Bb5 {[%clk 0:02:54]} 6... Nc6 {[%clk 0:02:46.6]}
7. Bxc6 {[%clk 0:02:45.4]} 7... bxc6 {[%clk 0:02:48.5]} 8. O-O {[%clk
0:02:47.3]} 8... Be7 {[%clk 0:02:42.6]} 9. Qe2 {[%clk 0:02:44.4]} 9... O-O
{[%clk 0:02:41.1]} 10. d3 {[%clk 0:02:43.4]} 10... Qc7 {[%clk 0:02:18.5]} 11.
Bf4 {[%clk 0:02:36.3]} 11... Rb8 {[%clk 0:02:08.5]} 12. b3 {[%clk 0:02:31.5]}
12... Qa5 {[%clk 0:02:06.8]} 13. Bd2 {[%clk 0:02:26.2]} 13... Qc7 {[%clk
0:02:02.4]} 14. Rae1 {[%clk 0:02:18.4]} 14... c4 {[%clk 0:01:40.3]} 15. bxc4
{[%clk 0:01:57.2]} 15... Nb6 {[%clk 0:01:02.7]} 16. cxd5 {[%clk 0:01:30.8]}
16... cxd5 {[%clk 0:01:02.3]} 17. Nd4 {[%clk 0:01:27.4]} 17... Bd7 {[%clk
0:00:47]} 18. Nb3 {[%clk 0:00:55.4]} 18... Rfc8 {[%clk 0:00:41.9]} 19. Kh1
{[%clk 0:00:42.5]} 19... Bb4 {[%clk 0:00:42.3]} 20. Nb5 {[%clk 0:00:13.9]} 20...
Bxb5 {[%clk 0:00:43.1]} 21. Bxb4 {[%clk 0:00:15.5]} 21... Qxc2 {[%clk
0:00:44.5]} 22. Qxc2 {[%clk 0:00:13]} 22... Rxc2 {[%clk 0:00:46.4]} 23. Nd4
{[%clk 0:00:14.6]} 23... Bxd3 {[%clk 0:00:23.2]} 24. Nxc2 {[%clk 0:00:12.7]}
24... Bxc2 {[%clk 0:00:25.1]} 25. Re3 {[%clk 0:00:10.1]} 25... Nc4 {[%clk
0:00:22.3]} 26. Rc3 {[%clk 0:00:04.7]} 26... Rxb4 {[%clk 0:00:06.5]} 27. Rxc2
{[%clk 0:00:05.6]} 27... Kf8 {[%clk 0:00:07.2]} 28. Rfc1 {[%clk 0:00:06.2]}
28... Ke7 {[%clk 0:00:07.8]} 29. f4 {[%clk 0:00:07.5]} 29... Kd7 {[%clk
0:00:06.1]} 30. g3 {[%clk 0:00:03.7]} 30... a5 {[%clk 0:00:07.1]} 31. Rc3 {[%clk
0:00:04.9]} 31... a4 {[%clk 0:00:08.1]} 32. R1c2 {[%clk 0:00:06.3]} 32... a3
{[%clk 0:00:08.4]} 33. Kg2 {[%clk 0:00:07.4]} 33... Rb2 {[%clk 0:00:09.3]} 34.
Rxb2 {[%clk 0:00:07.6]} 34... axb2 {[%clk 0:00:09.2]} 35. Rb3 {[%clk 0:00:09.2]}
35... Kc6 {[%clk 0:00:09.4]} 36. Kf2 {[%clk 0:00:10.5]} 36... Kc5 {[%clk
0:00:09.1]} 37. Ke2 {[%clk 0:00:11.9]} 37... Kd4 {[%clk 0:00:06.3]} 38. a4
{[%clk 0:00:13.3]} 38... Kc5 {[%clk 0:00:06.9]} 39. Kd3 {[%clk 0:00:11.1]} 39...
Kc6 {[%clk 0:00:05.7]} 40. Kc3 {[%clk 0:00:08.8]} 40... g6 {[%clk 0:00:06.3]}
41. h4 {[%clk 0:00:09]} 41... h5 {[%clk 0:00:06.9]} 42. a5 {[%clk 0:00:10.5]}
42... Nxa5 {[%clk 0:00:07.3]} 43. Rxb2 {[%clk 0:00:12.2]} 43... Nc4 {[%clk
0:00:08.8]} 44. Ra2 {[%clk 0:00:13.8]} 44... Kb7 {[%clk 0:00:09.3]} 45. Kd4
{[%clk 0:00:15]} 45... Kc7 {[%clk 0:00:07.7]} 46. Ra7+ {[%clk 0:00:14.4]} 46...
Kb6 {[%clk 0:00:08.3]} 47. Rxf7 {[%clk 0:00:15.7]} 1-0

[Event "*** Titled Tuesday Blitz"]
[Site "Chess.com"]
[Date "2019.02.05"]
[Round "6"]
[White "Iyael"]
[Black "Synctel"]
[Result "0-1"]
[WhiteElo "1987"]
[BlackElo "1912"]
[TimeControl "180+2"]
[EndTime "14:24:48 PST"]
[Termination "Synctel won by resignation"]

1. e4 {[%clk 0:03:01.9]} 1... e6 {[%clk 0:02:58.2]} 2. d4 {[%clk 0:03:01.7]}
2... d5 {[%clk 0:02:53.6]} 3. e5 {[%clk 0:03:01.7]} 3... c5 {[%clk 0:02:52.5]}
4. c3 {[%clk 0:03:02]} 4... Bd7 {[%clk 0:02:48.7]} 5. Nf3 {[%clk 0:03:01.7]}
5... Qb6 {[%clk 0:02:44]} 6. Be2 {[%clk 0:03:01.3]} 6... Bb5 {[%clk 0:02:44.5]}
7. c4 {[%clk 0:03:01.8]} 7... Bxc4 {[%clk 0:02:39.6]} 8. Bxc4 {[%clk 0:03:02.3]}
8... Qb4+ {[%clk 0:02:35.2]} 9. Nbd2 {[%clk 0:02:52.4]} 9... dxc4 {[%clk
0:02:35.9]} 10. O-O {[%clk 0:02:51.7]} 10... Nc6 {[%clk 0:02:32.2]} 11. dxc5
{[%clk 0:02:40]} 11... Bxc5 {[%clk 0:02:32.3]} 12. Qe2 {[%clk 0:02:39.9]} 12...
Nge7 {[%clk 0:02:27.3]} 13. Ne4 {[%clk 0:02:34.8]} 13... O-O {[%clk 0:02:23]}
14. a3 {[%clk 0:02:35.1]} 14... Qb6 {[%clk 0:02:14.9]} 15. Qxc4 {[%clk
0:02:35.4]} 15... Bd4 {[%clk 0:01:50]} 16. Rb1 {[%clk 0:02:32.9]} 16... Bxe5
{[%clk 0:01:39.4]} 17. Nxe5 {[%clk 0:02:33]} 17... Nxe5 {[%clk 0:01:39.9]} 18.
Qe2 {[%clk 0:02:28.7]} 18... N7c6 {[%clk 0:01:29.1]} 19. Be3 {[%clk 0:02:29.3]}
19... Qc7 {[%clk 0:01:21.6]} 20. Rbc1 {[%clk 0:02:28.5]} 20... Rfd8 {[%clk
0:01:20.6]} 21. b4 {[%clk 0:02:27]} 21... a6 {[%clk 0:01:20.3]} 22. h3 {[%clk
0:02:14.2]} 22... Nd3 {[%clk 0:01:17.3]} 23. Rc3 {[%clk 0:02:11]} 23... Nf4
{[%clk 0:01:17]} 24. Qg4 {[%clk 0:02:05.7]} 24... Nd5 {[%clk 0:01:14.7]} 25. Rc5
{[%clk 0:01:58.2]} 25... f5 {[%clk 0:01:13.2]} 26. Qg3 {[%clk 0:01:24.2]} 26...
f4 {[%clk 0:01:11.7]} 27. Qg4 {[%clk 0:01:21.5]} 27... fxe3 {[%clk 0:01:08.7]}
28. Qxe6+ {[%clk 0:01:21.5]} 28... Qf7 {[%clk 0:01:10.2]} 29. Qxf7+ {[%clk
0:01:16.5]} 29... Kxf7 {[%clk 0:01:12.1]} 30. fxe3+ {[%clk 0:01:18]} 30... Kg8
{[%clk 0:01:10.5]} 31. Rf3 {[%clk 0:01:17.2]} 31... Nce7 {[%clk 0:01:05.6]} 32.
Ng5 {[%clk 0:01:14.4]} 32... Rf8 {[%clk 0:00:59.9]} 33. Rg3 {[%clk 0:01:15.1]}
33... h6 {[%clk 0:01:00]} 34. Ne6 {[%clk 0:01:15.3]} 34... Rf7 {[%clk
0:00:59.9]} 35. e4 {[%clk 0:01:16]} 35... Nf4 {[%clk 0:00:56.9]} 36. Nxf4 {[%clk
0:01:12.6]} 36... Rxf4 {[%clk 0:00:58.8]} 37. Rc7 {[%clk 0:01:13.4]} 37... Rxe4
{[%clk 0:00:57.4]} 38. Rxb7 {[%clk 0:01:13.4]} 38... Nf5 {[%clk 0:00:45.3]} 39.
Rf3 {[%clk 0:01:10.1]} 39... g6 {[%clk 0:00:44.9]} 40. g4 {[%clk 0:01:09.1]}
40... Nd6 {[%clk 0:00:43.1]} 41. Rb6 {[%clk 0:01:09]} 41... Rd4 {[%clk
0:00:37.7]} 42. Rf6 {[%clk 0:01:08.3]} 42... Rd8 {[%clk 0:00:31.3]} 43. Rxg6+
{[%clk 0:01:08.9]} 43... Kh7 {[%clk 0:00:30.3]} 44. Re6 {[%clk 0:01:09.3]} 44...
Rd2 {[%clk 0:00:27.7]} 45. Rxa6 {[%clk 0:01:08.9]} 45... Nf7 {[%clk 0:00:26.2]}
46. Ra7 {[%clk 0:01:05.9]} 46... Kg7 {[%clk 0:00:19.5]} 47. Ree7 {[%clk
0:01:06.2]} 47... Rd1+ {[%clk 0:00:17.8]} 48. Kg2 {[%clk 0:01:06.6]} 48... R1d2+
{[%clk 0:00:16]} 49. Kg3 {[%clk 0:01:07.4]} 49... R8d3+ {[%clk 0:00:15.3]} 50.
Kh4 {[%clk 0:01:07.9]} 50... Rf2 {[%clk 0:00:16.9]} 51. b5 {[%clk 0:01:04.3]}
51... Rff3 {[%clk 0:00:17.7]} 52. Rxf7+ {[%clk 0:01:03.7]} 52... Rxf7 {[%clk
0:00:19.5]} 53. Ra6 {[%clk 0:01:04.8]} 53... Rff3 {[%clk 0:00:18.2]} 54. g5
{[%clk 0:01:01.9]} 54... Rxh3+ {[%clk 0:00:18]} 55. Kg4 {[%clk 0:01:03]} 55...
Rdg3+ {[%clk 0:00:19.7]} 56. Kf4 {[%clk 0:01:03.9]} 56... hxg5+ {[%clk
0:00:20.6]} 57. Kf5 {[%clk 0:01:03.3]} 57... Rxa3 {[%clk 0:00:22.5]} 58. Rg6+
{[%clk 0:00:59]} 58... Kf7 {[%clk 0:00:22.9]} 59. Rxg5 {[%clk 0:00:59.9]} 59...
Rab3 {[%clk 0:00:23.1]} 60. Kf4 {[%clk 0:01:00.1]} 60... Rh4+ {[%clk 0:00:24]}
0-1

[Event "*** Titled Tuesday Blitz"]
[Site "Chess.com"]
[Date "2019.02.05"]
[Round "6"]
[White "nailbeshirli"]
[Black "Supernotar"]
[Result "1-0"]
[WhiteElo "2682"]
[BlackElo "2482"]
[TimeControl "180+2"]
[EndTime "14:24:51 PST"]
[Termination "nailbeshirli won by checkmate"]

1. e4 {[%clk 0:02:50.6]} 1... c6 {[%clk 0:03:00.9]} 2. Nc3 {[%clk 0:02:50.2]}
2... d5 {[%clk 0:03:01.9]} 3. d4 {[%clk 0:02:33.3]} 3... dxe4 {[%clk 0:03:02.1]}
4. Nxe4 {[%clk 0:02:20.7]} 4... Bf5 {[%clk 0:03:03]} 5. Ng3 {[%clk 0:02:08]}
5... Bg6 {[%clk 0:03:02.2]} 6. h4 {[%clk 0:02:09.6]} 6... h6 {[%clk 0:03:03.2]}
7. Nf3 {[%clk 0:02:09.4]} 7... Nd7 {[%clk 0:03:03.8]} 8. h5 {[%clk 0:02:10.2]}
8... Bh7 {[%clk 0:03:05]} 9. Bd3 {[%clk 0:02:10.2]} 9... Bxd3 {[%clk 0:03:06]}
10. Qxd3 {[%clk 0:02:11.9]} 10... Ngf6 {[%clk 0:03:07.3]} 11. Bd2 {[%clk
0:02:12.7]} 11... e6 {[%clk 0:03:08.6]} 12. O-O-O {[%clk 0:02:13.2]} 12... Be7
{[%clk 0:03:10]} 13. Kb1 {[%clk 0:02:14]} 13... O-O {[%clk 0:03:10.7]} 14. Qe2
{[%clk 0:02:15.5]} 14... c5 {[%clk 0:03:10.4]} 15. dxc5 {[%clk 0:02:10.3]} 15...
Qc7 {[%clk 0:03:11.2]} 16. Ne4 {[%clk 0:02:06.3]} 16... Nxe4 {[%clk 0:03:07.1]}
17. Qxe4 {[%clk 0:02:08.2]} 17... Nf6 {[%clk 0:03:05.1]} 18. Qe2 {[%clk
0:02:04.3]} 18... Qxc5 {[%clk 0:03:03.3]} 19. Be3 {[%clk 0:02:01.6]} 19... Qc7
{[%clk 0:02:46.5]} 20. Bd4 {[%clk 0:01:56.4]} 20... Rad8 {[%clk 0:02:41.4]} 21.
Ne5 {[%clk 0:01:50.1]} 21... Bc5 {[%clk 0:02:34.5]} 22. Bxc5 {[%clk 0:01:47]}
22... Qxc5 {[%clk 0:02:33.7]} 23. g4 {[%clk 0:01:47.3]} 23... Rd5 {[%clk
0:02:15.3]} 24. Rxd5 {[%clk 0:01:42]} 24... Qxd5 {[%clk 0:02:12.7]} 25. Rd1
{[%clk 0:01:42.8]} 25... Qg2 {[%clk 0:02:07.7]} 26. a4 {[%clk 0:01:39.9]} 26...
Nd5 {[%clk 0:02:01.1]} 27. Qe1 {[%clk 0:01:33.6]} 27... Rc8 {[%clk 0:01:53.8]}
28. Rd2 {[%clk 0:01:32.3]} 28... Qh2 {[%clk 0:01:27.6]} 29. c4 {[%clk
0:01:30.7]} 29... Nf6 {[%clk 0:01:11.5]} 30. Rd4 {[%clk 0:01:24.7]} 30... Qg2
{[%clk 0:00:48.9]} 31. f3 {[%clk 0:01:21.3]} 31... Qh2 {[%clk 0:00:47.1]} 32.
Ka2 {[%clk 0:01:18.4]} 32... b6 {[%clk 0:00:41.8]} 33. Qe3 {[%clk 0:01:15.8]}
33... Qc2 {[%clk 0:00:40.9]} 34. Rd3 {[%clk 0:01:08.3]} 34... Qxa4+ {[%clk
0:00:18.8]} 35. Ra3 {[%clk 0:01:08.5]} 35... Qb4 {[%clk 0:00:19.9]} 36. Rxa7
{[%clk 0:01:05.4]} 36... Rf8 {[%clk 0:00:16.9]} 37. g5 {[%clk 0:01:02.2]} 37...
hxg5 {[%clk 0:00:17.6]} 38. Qxg5 {[%clk 0:01:02.4]} 38... Nh7 {[%clk 0:00:11.2]}
39. Qg3 {[%clk 0:01:00.5]} 39... Qc5 {[%clk 0:00:09.3]} 40. h6 {[%clk 0:00:41]}
40... g5 {[%clk 0:00:10.2]} 41. f4 {[%clk 0:00:37.7]} 41... b5 {[%clk
0:00:11.1]} 42. Ra3 {[%clk 0:00:27.7]} 42... bxc4 {[%clk 0:00:11.5]} 43. Nd7
{[%clk 0:00:25.9]} 43... Qd5 {[%clk 0:00:11]} 44. Qc3 {[%clk 0:00:20.6]} 44...
f6 {[%clk 0:00:08.6]} 45. Nxf8 {[%clk 0:00:21.6]} 45... Nxf8 {[%clk 0:00:10.2]}
46. fxg5 {[%clk 0:00:22.9]} 46... fxg5 {[%clk 0:00:10.9]} 47. Ra5 {[%clk
0:00:23.9]} 47... Qd7 {[%clk 0:00:10.9]} 48. Rxg5+ {[%clk 0:00:24.8]} 48... Kh7
{[%clk 0:00:10.5]} 49. Rg7+ {[%clk 0:00:25.9]} 49... Qxg7 {[%clk 0:00:10.8]} 50.
Qxg7# {[%clk 0:00:26.5]} 1-0